[Event "Titled Tuesday Blitz June 14 Early 2022"]
[White "Dubov, Daniil"]
[Black "Andreikin, Dmitry"]
[WhiteFideId "24126055"]
[BlackFideId "4158814"]
[WhiteElo "2791"]
[BlackElo "2736"]
[Result "0-1"]
[Round "11"]
[TimeControl "180+1"]
[Date "2022.06.14"]
[WhiteClock "0:00:03"]
[BlackClock "0:00:35"]

1. d4 {[%clk 0:03:00]}  d5 {[%clk 0:03:00]} 2. c4 {[%clk 0:03:00]}  e6 {[%clk 0:03:00]} 3. Nf3 {[%clk 0:03:00]}  Nf6 {[%clk 0:03:00]} 4. g3 {[%clk 0:03:01]}  Be7 {[%clk 0:03:00]} 5. Bg2 {[%clk 0:03:01]}  O-O {[%clk 0:03:01]} 6. O-O {[%clk 0:03:02]}  c6 {[%clk 0:03:01]} 7. Qc2 {[%clk 0:03:01]}  Nbd7 {[%clk 0:03:01]} 8. b3 {[%clk 0:03:00]}  b6 {[%clk 0:03:01]} 9. Bb2 {[%clk 0:02:57]}  Bb7 {[%clk 0:03:01]} 10. Nbd2 {[%clk 0:02:56]}  Rc8 {[%clk 0:03:01]} 11. e4 {[%clk 0:02:55]}  c5 {[%clk 0:03:02]} 12. exd5 {[%clk 0:02:54]}  exd5 {[%clk 0:03:01]} 13. Rad1 {[%clk 0:02:50]}  dxc4 {[%clk 0:02:56]} 14. Nxc4 {[%clk 0:02:38]}  b5 {[%clk 0:02:55]} 15. Nce5 {[%clk 0:02:34]}  cxd4 {[%clk 0:02:55]} 16. Qf5 {[%clk 0:02:30]}  Nxe5 {[%clk 0:02:47]} 17. Qxe5 {[%clk 0:02:22]}  Rc5 {[%clk 0:02:47]} 18. Qxd4 {[%clk 0:02:16]}  Rd5 {[%clk 0:02:46]} 19. Qxa7 {[%clk 0:02:12]}  Rxd1 {[%clk 0:02:46]} 20. Qxb7 {[%clk 0:02:12]}  b4 {[%clk 0:02:39]} 21. Ne5 {[%clk 0:01:49]}  Bc5 {[%clk 0:02:33]} 22. Qf3 {[%clk 0:01:44]}  Rxf1+ {[%clk 0:02:31]} 23. Bxf1 {[%clk 0:01:45]}  Qa8 {[%clk 0:02:21]} 24. Qxa8 {[%clk 0:00:54]}  Rxa8 {[%clk 0:02:21]} 25. Nd3 {[%clk 0:00:55]}  Bd6 {[%clk 0:02:00]} 26. Bxf6 {[%clk 0:00:47]}  gxf6 {[%clk 0:02:01]} 27. Nc1 {[%clk 0:00:38]}  Be5 {[%clk 0:02:01]} 28. Bc4 {[%clk 0:00:36]}  Bb2 {[%clk 0:02:00]} 29. Nd3 {[%clk 0:00:35]}  Bc3 {[%clk 0:02:01]} 30. Nc1 {[%clk 0:00:31]}  Bd2 {[%clk 0:02:00]} 31. Nd3 {[%clk 0:00:30]}  Rxa2 {[%clk 0:01:59]} 32. Kg2 {[%clk 0:00:31]}  Bc3 {[%clk 0:01:55]} 33. Kf3 {[%clk 0:00:27]}  Bd4 {[%clk 0:01:48]} 34. Ke4 {[%clk 0:00:24]}  Bxf2 {[%clk 0:01:43]} 35. Nxb4 {[%clk 0:00:24]}  Rd2 {[%clk 0:01:43]} 36. Nd5 {[%clk 0:00:23]}  Kg7 {[%clk 0:01:39]} 37. Ne7 {[%clk 0:00:22]}  Bc5 {[%clk 0:01:18]} 38. Nf5+ {[%clk 0:00:22]}  Kg6 {[%clk 0:01:18]} 39. Nh4+ {[%clk 0:00:21]}  Kg7 {[%clk 0:01:19]} 40. Nf5+ {[%clk 0:00:21]}  Kf8 {[%clk 0:01:19]} 41. h3 {[%clk 0:00:20]}  h5 {[%clk 0:01:17]} 42. Kf3 {[%clk 0:00:16]}  Rf2+ {[%clk 0:01:15]} 43. Ke4 {[%clk 0:00:15]}  Rh2 {[%clk 0:01:11]} 44. h4 {[%clk 0:00:14]}  Rd2 {[%clk 0:01:11]} 45. Bb5 {[%clk 0:00:13]}  Rb2 {[%clk 0:01:09]} 46. Bc4 {[%clk 0:00:13]}  Rd2 {[%clk 0:01:05]} 47. Kf3 {[%clk 0:00:13]}  Bb6 {[%clk 0:01:05]} 48. Ke4 {[%clk 0:00:13]}  Bc7 {[%clk 0:01:04]} 49. Ke3 {[%clk 0:00:12]}  Rd1 {[%clk 0:01:04]} 50. Be2 {[%clk 0:00:11]}  Rg1 {[%clk 0:00:48]} 51. Kf2 {[%clk 0:00:09]}  Bb6+ {[%clk 0:00:48]} 52. Kf3 {[%clk 0:00:08]}  Rb1 {[%clk 0:00:47]} 53. Bc4 {[%clk 0:00:08]}  Rb2 {[%clk 0:00:48]} 54. Nh6 {[%clk 0:00:08]}  Rf2+ {[%clk 0:00:46]} 55. Ke4 {[%clk 0:00:07]}  Bc7 {[%clk 0:00:45]} 56. Nf5 {[%clk 0:00:04]}  Be5 {[%clk 0:00:45]} 57. Bd3 {[%clk 0:00:04]}  Rb2 {[%clk 0:00:45]} 58. Bc4 {[%clk 0:00:04]}  Rb1 {[%clk 0:00:42]} 59. Kf3 {[%clk 0:00:04]}  Rc1 {[%clk 0:00:41]} 60. Ke4 {[%clk 0:00:05]}  Rc3 {[%clk 0:00:41]} 61. Be2 {[%clk 0:00:04]}  Rxb3 {[%clk 0:00:36]} 62. Bxh5 {[%clk 0:00:02]}  Bxg3 {[%clk 0:00:36]} 63. Bd1 {[%clk 0:00:03]}  Rb4+ {[%clk 0:00:35]} 64. Kf3 {[%clk 0:00:03]}  Bxh4 {[%clk 0:00:35]} 0-1


[Site "https://www.chess.com"]

[Event "Titled Tuesday Blitz June 14 Early 2022"]
[White "Garv Gaur"]
[Black "Galperin, Platon"]
[WhiteFideId "45030839"]
[BlackFideId "14165414"]
[WhiteElo "1950"]
[BlackElo "2432"]
[Result "0-1"]
[Round "11"]
[TimeControl "180+1"]
[Date "2022.06.14"]
[WhiteClock "0:00:01"]
[BlackClock "0:01:07"]

1. d4 {[%clk 0:03:00]}  d5 {[%clk 0:02:59]} 2. Nf3 {[%clk 0:03:00]}  Nf6 {[%clk 0:02:59]} 3. c4 {[%clk 0:03:01]}  dxc4 {[%clk 0:02:59]} 4. g3 {[%clk 0:03:00]}  b5 {[%clk 0:02:57]} 5. Bg2 {[%clk 0:02:59]}  Bb7 {[%clk 0:02:57]} 6. a4 {[%clk 0:02:59]}  a6 {[%clk 0:02:57]} 7. O-O {[%clk 0:02:59]}  e6 {[%clk 0:02:57]} 8. Bf4 {[%clk 0:02:54]}  Bd6 {[%clk 0:02:56]} 9. Bg5 {[%clk 0:02:47]}  Nbd7 {[%clk 0:02:54]} 10. Re1 {[%clk 0:02:43]}  h6 {[%clk 0:02:53]} 11. Bd2 {[%clk 0:02:38]}  O-O {[%clk 0:02:51]} 12. Ba5 {[%clk 0:02:32]}  Qe7 {[%clk 0:02:31]} 13. Nbd2 {[%clk 0:02:30]}  Ne4 {[%clk 0:02:21]} 14. Nxe4 {[%clk 0:02:28]}  Bxe4 {[%clk 0:02:21]} 15. b3 {[%clk 0:02:28]}  cxb3 {[%clk 0:02:19]} 16. Qxb3 {[%clk 0:02:29]}  Rab8 {[%clk 0:02:16]} 17. axb5 {[%clk 0:02:26]}  axb5 {[%clk 0:02:16]} 18. Rec1 {[%clk 0:02:21]}  c5 {[%clk 0:02:14]} 19. dxc5 {[%clk 0:02:13]}  Nxc5 {[%clk 0:02:15]} 20. Qe3 {[%clk 0:02:13]}  Bd5 {[%clk 0:02:12]} 21. Nd4 {[%clk 0:02:07]}  Bxg2 {[%clk 0:02:09]} 22. Kxg2 {[%clk 0:02:08]}  Rfc8 {[%clk 0:02:07]} 23. Bb4 {[%clk 0:01:58]}  Na4 {[%clk 0:02:04]} 24. Bxd6 {[%clk 0:01:36]}  Qxd6 {[%clk 0:02:05]} 25. Kg1 {[%clk 0:00:58]}  Qd5 {[%clk 0:01:59]} 26. Rd1 {[%clk 0:00:52]}  Nc3 {[%clk 0:01:58]} 27. Rd3 {[%clk 0:00:51]}  b4 {[%clk 0:01:58]} 28. Nc2 {[%clk 0:00:47]}  Qb3 {[%clk 0:01:53]} 29. Nd4 {[%clk 0:00:41]}  Qb2 {[%clk 0:01:51]} 30. Ra7 {[%clk 0:00:37]}  Nd5 {[%clk 0:01:43]} 31. Qf3 {[%clk 0:00:36]}  Rc7 {[%clk 0:01:38]} 32. Rxc7 {[%clk 0:00:29]}  Nxc7 {[%clk 0:01:39]} 33. Nc6 {[%clk 0:00:27]}  Rb6 {[%clk 0:01:39]} 34. Rd8+ {[%clk 0:00:17]}  Kh7 {[%clk 0:01:39]} 35. Nd4 {[%clk 0:00:16]}  Qb1+ {[%clk 0:01:36]} 36. Kg2 {[%clk 0:00:16]}  f5 {[%clk 0:01:12]} 37. Rd7 {[%clk 0:00:16]}  Ne8 {[%clk 0:01:12]} 38. Qb3 {[%clk 0:00:05]}  Qe4+ {[%clk 0:01:10]} 39. f3 {[%clk 0:00:04]}  Qe5 {[%clk 0:01:09]} 40. e3 {[%clk 0:00:04]}  Nf6 {[%clk 0:01:08]} 41. Re7 {[%clk 0:00:03]}  Nd5 {[%clk 0:01:09]} 42. Rd7 {[%clk 0:00:01]}  Qxe3 {[%clk 0:01:07]} 0-1


[Site "https://www.chess.com"]

[Event "Titled Tuesday Blitz June 14 Early 2022"]
[White "Gurevich, Dmitry"]
[Black "Rozman, Levy"]
[WhiteFideId "2000407"]
[BlackFideId "2039877"]
[WhiteElo "2506"]
[BlackElo "2376"]
[Result "1-0"]
[Round "11"]
[TimeControl "180+1"]
[Date "2022.06.14"]
[WhiteClock "0:00:42"]
[BlackClock "0:00:02"]

1. d4 {[%clk 0:03:00]}  g6 {[%clk 0:02:56]} 2. e4 {[%clk 0:02:58]}  Bg7 {[%clk 0:02:56]} 3. Nf3 {[%clk 0:02:58]}  d6 {[%clk 0:02:56]} 4. c3 {[%clk 0:02:57]}  Nc6 {[%clk 0:02:55]} 5. Bd3 {[%clk 0:02:55]}  e5 {[%clk 0:02:55]} 6. d5 {[%clk 0:02:55]}  Nce7 {[%clk 0:02:54]} 7. c4 {[%clk 0:02:55]}  h6 {[%clk 0:02:54]} 8. Nc3 {[%clk 0:02:54]}  f5 {[%clk 0:02:49]} 9. h4 {[%clk 0:02:52]}  f4 {[%clk 0:02:37]} 10. b4 {[%clk 0:02:49]}  a5 {[%clk 0:02:35]} 11. bxa5 {[%clk 0:02:48]}  Rxa5 {[%clk 0:02:29]} 12. a4 {[%clk 0:02:48]}  b6 {[%clk 0:02:25]} 13. Bd2 {[%clk 0:02:48]}  Ra8 {[%clk 0:02:24]} 14. Nb5 {[%clk 0:02:47]}  Bd7 {[%clk 0:02:22]} 15. a5 {[%clk 0:02:46]}  Bxb5 {[%clk 0:02:13]} 16. cxb5 {[%clk 0:02:46]}  bxa5 {[%clk 0:02:14]} 17. Rxa5 {[%clk 0:02:43]}  Nf6 {[%clk 0:02:11]} 18. O-O {[%clk 0:02:32]}  O-O {[%clk 0:02:03]} 19. Rxa8 {[%clk 0:02:29]}  Qxa8 {[%clk 0:02:02]} 20. Qa1 {[%clk 0:02:29]}  Nd7 {[%clk 0:01:55]} 21. Bb4 {[%clk 0:02:11]}  Qb8 {[%clk 0:01:48]} 22. Rc1 {[%clk 0:02:06]}  Nc8 {[%clk 0:01:48]} 23. Qc3 {[%clk 0:02:02]}  Nc5 {[%clk 0:01:03]} 24. Bxc5 {[%clk 0:02:01]}  dxc5 {[%clk 0:01:04]} 25. Qxc5 {[%clk 0:02:01]}  Rf7 {[%clk 0:01:00]} 26. Qc6 {[%clk 0:01:55]}  Nd6 {[%clk 0:00:58]} 27. Rb1 {[%clk 0:01:46]}  Nc8 {[%clk 0:00:44]} 28. d6 {[%clk 0:01:40]}  Nxd6 {[%clk 0:00:43]} 29. b6 {[%clk 0:01:40]}  cxb6 {[%clk 0:00:41]} 30. Rxb6 {[%clk 0:01:37]}  Rb7 {[%clk 0:00:40]} 31. Rxb7 {[%clk 0:01:31]}  Nxb7 {[%clk 0:00:39]} 32. Qxg6 {[%clk 0:01:29]}  Qc7 {[%clk 0:00:25]} 33. Qe6+ {[%clk 0:01:24]}  Qf7 {[%clk 0:00:24]} 34. Qc8+ {[%clk 0:01:19]}  Kh7 {[%clk 0:00:22]} 35. Bc4 {[%clk 0:01:18]}  Nd6 {[%clk 0:00:22]} 36. Bxf7 {[%clk 0:01:11]}  Nxc8 {[%clk 0:00:23]} 37. h5 {[%clk 0:01:09]}  Bf6 {[%clk 0:00:22]} 38. Kh2 {[%clk 0:01:06]}  Kg7 {[%clk 0:00:20]} 39. Bd5 {[%clk 0:01:04]}  Nd6 {[%clk 0:00:19]} 40. Kh3 {[%clk 0:01:04]}  Kf8 {[%clk 0:00:18]} 41. Kg4 {[%clk 0:01:03]}  Kg7 {[%clk 0:00:17]} 42. Ne1 {[%clk 0:01:02]}  Bd8 {[%clk 0:00:14]} 43. Nd3 {[%clk 0:01:01]}  Kf6 {[%clk 0:00:14]} 44. Nc5 {[%clk 0:01:01]}  Ke7 {[%clk 0:00:10]} 45. Ne6 {[%clk 0:01:01]}  Bb6 {[%clk 0:00:10]} 46. f3 {[%clk 0:00:58]}  Kf6 {[%clk 0:00:10]} 47. Nf8 {[%clk 0:00:56]}  Bf2 {[%clk 0:00:08]} 48. Nd7+ {[%clk 0:00:55]}  Kg7 {[%clk 0:00:04]} 49. Nxe5 {[%clk 0:00:54]}  Be3 {[%clk 0:00:03]} 50. Nd3 {[%clk 0:00:51]}  Ne8 {[%clk 0:00:02]} 51. Nxf4 {[%clk 0:00:42]} 1-0


[Site "https://www.chess.com"]

[Event "Titled Tuesday Blitz June 14 Early 2022"]
[White "Hesham, Abdelrahman"]
[Black "Xu, Yi"]
[WhiteFideId "10600183"]
[BlackFideId "8605564"]
[WhiteElo "2506"]
[BlackElo "2471"]
[Result "0-1"]
[Round "11"]
[TimeControl "180+1"]
[Date "2022.06.14"]
[WhiteClock "0:00:06"]
[BlackClock "0:00:13"]

1. e4 {[%clk 0:02:42]}  c5 {[%clk 0:02:58]} 2. Nf3 {[%clk 0:02:41]}  d6 {[%clk 0:02:59]} 3. d4 {[%clk 0:02:41]}  cxd4 {[%clk 0:02:59]} 4. Nxd4 {[%clk 0:02:42]}  Nf6 {[%clk 0:03:00]} 5. Nc3 {[%clk 0:02:42]}  a6 {[%clk 0:03:00]} 6. Bg5 {[%clk 0:02:41]}  e6 {[%clk 0:03:00]} 7. f4 {[%clk 0:02:37]}  Qb6 {[%clk 0:02:59]} 8. Qd2 {[%clk 0:02:27]}  Qxb2 {[%clk 0:02:58]} 9. Rb1 {[%clk 0:02:27]}  Qa3 {[%clk 0:02:58]} 10. f5 {[%clk 0:02:25]}  Be7 {[%clk 0:02:53]} 11. fxe6 {[%clk 0:02:09]}  Bxe6 {[%clk 0:02:53]} 12. Rxb7 {[%clk 0:02:01]}  Nbd7 {[%clk 0:02:50]} 13. Nxe6 {[%clk 0:01:56]}  fxe6 {[%clk 0:02:50]} 14. Bc4 {[%clk 0:01:56]}  Nc5 {[%clk 0:02:38]} 15. Rc7 {[%clk 0:01:50]}  Bd8 {[%clk 0:02:12]} 16. Rxg7 {[%clk 0:01:42]}  Nfxe4 {[%clk 0:02:11]} 17. Nxe4 {[%clk 0:01:27]}  Nxe4 {[%clk 0:02:11]} 18. Bxe6 {[%clk 0:00:19]}  Nxd2 {[%clk 0:01:43]} 19. Bd7+ {[%clk 0:00:18]}  Kf8 {[%clk 0:01:42]} 20. Bh6 {[%clk 0:00:19]}  Nf3+ {[%clk 0:01:05]} 21. Kf2 {[%clk 0:00:17]}  Bb6+ {[%clk 0:00:52]} 22. Kg3 {[%clk 0:00:11]}  Ne5+ {[%clk 0:00:47]} 23. Kh4 {[%clk 0:00:11]}  Bf2+ {[%clk 0:00:35]} 24. g3 {[%clk 0:00:10]}  Nxd7 {[%clk 0:00:32]} 25. Rf1 {[%clk 0:00:07]}  Qe3 {[%clk 0:00:17]} 26. Rxh7+ {[%clk 0:00:05]}  Kg8 {[%clk 0:00:14]} 27. Rxh8+ {[%clk 0:00:04]}  Kxh8 {[%clk 0:00:14]} 28. Bxe3 {[%clk 0:00:05]}  Bxe3 {[%clk 0:00:15]} 29. Rf7 {[%clk 0:00:06]}  Ne5 {[%clk 0:00:13]} 0-1


[Site "https://www.chess.com"]

[Event "Titled Tuesday Blitz June 14 Early 2022"]
[White "Ivanisevic, Ivan"]
[Black "Raahul V S"]
[WhiteFideId "912417"]
[BlackFideId "25035525"]
[WhiteElo "2535"]
[BlackElo "2133"]
[Result "1-0"]
[Round "11"]
[TimeControl "180+1"]
[Date "2022.06.14"]
[WhiteClock "0:00:14"]
[BlackClock "0:00:01"]

1. d4 {[%clk 0:02:48]}  d5 {[%clk 0:02:57]} 2. c4 {[%clk 0:02:49]}  dxc4 {[%clk 0:02:56]} 3. e4 {[%clk 0:02:47]}  e5 {[%clk 0:02:55]} 4. Nf3 {[%clk 0:02:47]}  exd4 {[%clk 0:02:55]} 5. Bxc4 {[%clk 0:02:46]}  Nc6 {[%clk 0:02:55]} 6. O-O {[%clk 0:02:37]}  Bc5 {[%clk 0:02:54]} 7. Ng5 {[%clk 0:02:25]}  Ne5 {[%clk 0:02:37]} 8. Bxf7+ {[%clk 0:02:22]}  Nxf7 {[%clk 0:02:34]} 9. Nxf7 {[%clk 0:02:23]}  Kxf7 {[%clk 0:02:27]} 10. Qh5+ {[%clk 0:02:23]}  g6 {[%clk 0:02:23]} 11. Qxc5 {[%clk 0:02:23]}  Nf6 {[%clk 0:02:23]} 12. f3 {[%clk 0:02:14]}  b6 {[%clk 0:02:20]} 13. Qc6 {[%clk 0:01:47]}  Bd7 {[%clk 0:02:15]} 14. Qc2 {[%clk 0:01:39]}  c5 {[%clk 0:02:12]} 15. Na3 {[%clk 0:01:39]}  Be6 {[%clk 0:02:06]} 16. Bh6 {[%clk 0:01:34]}  Qc7 {[%clk 0:02:01]} 17. Rad1 {[%clk 0:01:30]}  Rhd8 {[%clk 0:01:49]} 18. Nb5 {[%clk 0:01:24]}  Qd7 {[%clk 0:01:44]} 19. a4 {[%clk 0:01:23]}  a6 {[%clk 0:01:41]} 20. Na3 {[%clk 0:01:22]}  Kg8 {[%clk 0:01:40]} 21. Bg5 {[%clk 0:01:15]}  Rf8 {[%clk 0:01:38]} 22. Bh6 {[%clk 0:00:55]}  Rfc8 {[%clk 0:01:23]} 23. Nc4 {[%clk 0:00:48]}  Qc7 {[%clk 0:01:22]} 24. Bg5 {[%clk 0:00:39]}  Nd7 {[%clk 0:01:18]} 25. f4 {[%clk 0:00:38]}  b5 {[%clk 0:01:16]} 26. Na3 {[%clk 0:00:31]}  b4 {[%clk 0:00:58]} 27. Nc4 {[%clk 0:00:30]}  Nb6 {[%clk 0:00:55]} 28. Ne5 {[%clk 0:00:30]}  b3 {[%clk 0:00:53]} 29. Qe2 {[%clk 0:00:29]}  Nxa4 {[%clk 0:00:52]} 30. Ra1 {[%clk 0:00:27]}  Nb6 {[%clk 0:00:45]} 31. Rxa6 {[%clk 0:00:26]}  c4 {[%clk 0:00:42]} 32. Rxa8 {[%clk 0:00:25]}  Rxa8 {[%clk 0:00:43]} 33. Qd2 {[%clk 0:00:19]}  Qc5 {[%clk 0:00:37]} 34. f5 {[%clk 0:00:18]}  Qxe5 {[%clk 0:00:21]} 35. fxe6 {[%clk 0:00:17]}  c3 {[%clk 0:00:20]} 36. Qf2 {[%clk 0:00:14]}  Qxe6 {[%clk 0:00:04]} 37. Qxd4 {[%clk 0:00:14]}  c2 {[%clk 0:00:01]} 38. Bh6 {[%clk 0:00:14]} 1-0


[Site "https://www.chess.com"]

[Event "Titled Tuesday Blitz June 14 Early 2022"]
[White "Jaskolka, Tomasz"]
[Black "Srihari L R"]
[WhiteFideId "1170791"]
[BlackFideId "46617116"]
[WhiteElo "2073"]
[BlackElo "2170"]
[Result "0-1"]
[Round "11"]
[TimeControl "180+1"]
[Date "2022.06.14"]
[WhiteClock "0:00:03"]
[BlackClock "0:00:04"]

1. d4 {[%clk 0:03:00]}  d6 {[%clk 0:02:51]} 2. Nf3 {[%clk 0:02:56]}  Nf6 {[%clk 0:02:43]} 3. g3 {[%clk 0:02:53]}  g6 {[%clk 0:02:38]} 4. Bg2 {[%clk 0:02:53]}  Bg7 {[%clk 0:02:39]} 5. c4 {[%clk 0:02:53]}  O-O {[%clk 0:02:40]} 6. O-O {[%clk 0:02:54]}  c5 {[%clk 0:02:38]} 7. d5 {[%clk 0:02:51]}  e6 {[%clk 0:02:31]} 8. dxe6 {[%clk 0:02:49]}  Bxe6 {[%clk 0:02:28]} 9. Nbd2 {[%clk 0:02:40]}  Nc6 {[%clk 0:02:26]} 10. Rb1 {[%clk 0:02:37]}  d5 {[%clk 0:02:26]} 11. cxd5 {[%clk 0:02:37]}  Nxd5 {[%clk 0:02:25]} 12. a3 {[%clk 0:02:10]}  Qe7 {[%clk 0:02:14]} 13. e4 {[%clk 0:02:07]}  Nb6 {[%clk 0:02:05]} 14. Qc2 {[%clk 0:02:05]}  Rac8 {[%clk 0:02:04]} 15. Rd1 {[%clk 0:01:41]}  Rfd8 {[%clk 0:01:56]} 16. Nf1 {[%clk 0:01:38]}  Nd4 {[%clk 0:01:47]} 17. Nxd4 {[%clk 0:01:15]}  cxd4 {[%clk 0:01:47]} 18. Qd3 {[%clk 0:01:15]}  Nd7 {[%clk 0:01:19]} 19. f4 {[%clk 0:00:36]}  Nc5 {[%clk 0:01:16]} 20. Qf3 {[%clk 0:00:36]}  f5 {[%clk 0:00:59]} 21. e5 {[%clk 0:00:26]}  d3 {[%clk 0:00:43]} 22. Be3 {[%clk 0:00:23]}  Ne4 {[%clk 0:00:38]} 23. Bxa7 {[%clk 0:00:16]}  Qd7 {[%clk 0:00:27]} 24. h4 {[%clk 0:00:13]}  Bb3 {[%clk 0:00:24]} 25. Rd2 {[%clk 0:00:09]}  Nxd2 {[%clk 0:00:18]} 26. Nxd2 {[%clk 0:00:10]}  Bd5 {[%clk 0:00:19]} 27. Qf2 {[%clk 0:00:05]}  Bxg2 {[%clk 0:00:18]} 28. Kxg2 {[%clk 0:00:06]}  Rc2 {[%clk 0:00:18]} 29. Be3 {[%clk 0:00:06]}  Qd5+ {[%clk 0:00:17]} 30. Kh2 {[%clk 0:00:06]}  Bf8 {[%clk 0:00:16]} 31. Kh3 {[%clk 0:00:05]}  h5 {[%clk 0:00:16]} 32. Qf3 {[%clk 0:00:03]}  Qf7 {[%clk 0:00:08]} 33. Rd1 {[%clk 0:00:03]}  Rdc8 {[%clk 0:00:07]} 34. b4 {[%clk 0:00:03]}  R2c3 {[%clk 0:00:07]} 35. e6 {[%clk 0:00:03]}  Qxe6 {[%clk 0:00:07]} 36. Qxb7 {[%clk 0:00:03]}  Qxe3 {[%clk 0:00:06]} 37. Qd5+ {[%clk 0:00:03]}  Kh8 {[%clk 0:00:06]} 38. Nf3 {[%clk 0:00:04]}  Qe4 {[%clk 0:00:04]} 39. Qf7 {[%clk 0:00:03]}  Qxf3 {[%clk 0:00:04]} 40. Qf6+ {[%clk 0:00:04]}  Bg7 {[%clk 0:00:04]} 41. Qxg6 {[%clk 0:00:04]}  Qxd1 {[%clk 0:00:04]} 42. Kg2 {[%clk 0:00:03]}  Rc2+ {[%clk 0:00:04]} 43. Kh3 {[%clk 0:00:03]}  Qh1# {[%clk 0:00:04]} 0-1


[Site "https://www.chess.com"]

[Event "Titled Tuesday Blitz June 14 Early 2022"]
[White "Kobalia, Mikhail"]
[Black "Rodrigue-Lemieux, Shawn"]
[WhiteFideId "4119150"]
[BlackFideId "2620049"]
[WhiteElo "2667"]
[BlackElo "1763"]
[Result "1-0"]
[Round "11"]
[TimeControl "180+1"]
[Date "2022.06.14"]
[WhiteClock "0:00:13"]
[BlackClock "0:00:04"]

1. e4 {[%clk 0:03:00]}  c6 {[%clk 0:02:59]} 2. d4 {[%clk 0:03:00]}  d5 {[%clk 0:03:00]} 3. exd5 {[%clk 0:03:01]}  cxd5 {[%clk 0:03:01]} 4. Bd3 {[%clk 0:03:01]}  Nc6 {[%clk 0:03:02]} 5. c3 {[%clk 0:03:01]}  Nf6 {[%clk 0:03:03]} 6. h3 {[%clk 0:03:01]}  g6 {[%clk 0:03:02]} 7. Nf3 {[%clk 0:03:00]}  Bg7 {[%clk 0:03:03]} 8. Bf4 {[%clk 0:03:00]}  Bf5 {[%clk 0:03:03]} 9. Bxf5 {[%clk 0:02:59]}  gxf5 {[%clk 0:03:04]} 10. Nbd2 {[%clk 0:02:57]}  O-O {[%clk 0:03:04]} 11. Qe2 {[%clk 0:02:53]}  e6 {[%clk 0:03:04]} 12. O-O-O {[%clk 0:02:52]}  Ne4 {[%clk 0:02:59]} 13. g4 {[%clk 0:02:52]}  b5 {[%clk 0:02:56]} 14. gxf5 {[%clk 0:02:50]}  b4 {[%clk 0:02:56]} 15. Nxe4 {[%clk 0:02:42]}  dxe4 {[%clk 0:02:57]} 16. Qxe4 {[%clk 0:02:41]}  Rc8 {[%clk 0:02:50]} 17. Rhg1 {[%clk 0:02:30]}  bxc3 {[%clk 0:02:49]} 18. Bh6 {[%clk 0:02:28]}  Nb4 {[%clk 0:02:27]} 19. Rxg7+ {[%clk 0:01:17]}  Kh8 {[%clk 0:02:27]} 20. f6 {[%clk 0:01:05]}  Nxa2+ {[%clk 0:02:20]} 21. Kc2 {[%clk 0:01:05]}  Nb4+ {[%clk 0:01:46]} 22. Kb3 {[%clk 0:00:43]}  Qd5+ {[%clk 0:01:45]} 23. Qxd5 {[%clk 0:00:43]}  Nxd5 {[%clk 0:01:37]} 24. Ng5 {[%clk 0:00:15]}  Rb8+ {[%clk 0:00:31]} 25. Ka3 {[%clk 0:00:14]}  cxb2 {[%clk 0:00:22]} 26. Rxh7+ {[%clk 0:00:14]}  Kg8 {[%clk 0:00:22]} 27. Bg7 {[%clk 0:00:14]}  Nxf6 {[%clk 0:00:08]} 28. Bxf6 {[%clk 0:00:13]}  b1=N+ {[%clk 0:00:05]} 29. Rxb1 {[%clk 0:00:13]}  Rxb1 {[%clk 0:00:04]} 30. Rh8# {[%clk 0:00:13]} 1-0


[Site "https://www.chess.com"]

[Event "Titled Tuesday Blitz June 14 Early 2022"]
[White "Kosakowski, Jakub"]
[Black "Sarana, Alexey"]
[WhiteFideId "1185080"]
[BlackFideId "24133795"]
[WhiteElo "2476"]
[BlackElo "2666"]
[Result "0-1"]
[Round "11"]
[TimeControl "180+1"]
[Date "2022.06.14"]
[WhiteClock "0:00:18"]
[BlackClock "0:01:20"]

1. e4 {[%clk 0:03:00]}  c5 {[%clk 0:03:00]} 2. Nf3 {[%clk 0:03:01]}  d6 {[%clk 0:03:01]} 3. d4 {[%clk 0:03:00]}  cxd4 {[%clk 0:03:02]} 4. Nxd4 {[%clk 0:03:00]}  Nf6 {[%clk 0:03:02]} 5. Nc3 {[%clk 0:03:01]}  a6 {[%clk 0:03:03]} 6. Bg5 {[%clk 0:03:01]}  e6 {[%clk 0:03:03]} 7. f4 {[%clk 0:03:01]}  Nbd7 {[%clk 0:03:03]} 8. Qe2 {[%clk 0:02:52]}  Qc7 {[%clk 0:03:03]} 9. O-O-O {[%clk 0:02:50]}  b5 {[%clk 0:03:00]} 10. a3 {[%clk 0:02:50]}  Rb8 {[%clk 0:03:00]} 11. g4 {[%clk 0:02:37]}  Be7 {[%clk 0:03:00]} 12. Bg2 {[%clk 0:02:31]}  h6 {[%clk 0:02:59]} 13. Bh4 {[%clk 0:02:29]}  b4 {[%clk 0:03:00]} 14. axb4 {[%clk 0:02:28]}  Rxb4 {[%clk 0:03:01]} 15. Be1 {[%clk 0:02:28]}  Qb6 {[%clk 0:03:01]} 16. Nb3 {[%clk 0:02:19]}  a5 {[%clk 0:02:48]} 17. Bf2 {[%clk 0:02:11]}  Qc7 {[%clk 0:02:40]} 18. Nb5 {[%clk 0:01:35]}  Qb8 {[%clk 0:02:39]} 19. N3d4 {[%clk 0:01:35]}  Ba6 {[%clk 0:02:19]} 20. Nc7+ {[%clk 0:01:32]}  Qxc7 {[%clk 0:02:19]} 21. Qxa6 {[%clk 0:01:33]}  Nxg4 {[%clk 0:02:13]} 22. Bg1 {[%clk 0:01:15]}  O-O {[%clk 0:01:52]} 23. Nc6 {[%clk 0:01:07]}  Nb8 {[%clk 0:01:52]} 24. Nxe7+ {[%clk 0:01:04]}  Qxe7 {[%clk 0:01:53]} 25. Qxd6 {[%clk 0:01:04]}  Qb7 {[%clk 0:01:51]} 26. Bc5 {[%clk 0:01:01]}  Rc8 {[%clk 0:01:40]} 27. Bxb4 {[%clk 0:01:00]}  axb4 {[%clk 0:01:41]} 28. Rd2 {[%clk 0:00:52]}  Ne3 {[%clk 0:01:41]} 29. Qd3 {[%clk 0:00:48]}  Qa7 {[%clk 0:01:41]} 30. Kb1 {[%clk 0:00:38]}  Nc6 {[%clk 0:01:41]} 31. Re2 {[%clk 0:00:18]}  Ra8 {[%clk 0:01:33]} 32. Kc1 {[%clk 0:00:18]}  Nxg2 {[%clk 0:01:20]} 0-1


[Site "https://www.chess.com"]